[Event "*** Titled Tuesday Blitz"]
[Site "Chess.com"]
[Date "2021.02.02"]
[Round "2"]
[White "esrosenberg"]
[Black "hleol"]
[Result "1-0"]
[WhiteElo "2183"]
[BlackElo "2403"]
[TimeControl "180+1"]
[EndTime "10:20:06 PST"]
[Termination "esrosenberg won by checkmate"]

1. Nf3 {[%clk 0:03:00.9]} 1... d5 {[%clk 0:02:59.9]} 2. c4 {[%clk 0:03:01]} 2...
c6 {[%clk 0:02:59.6]} 3. d4 {[%clk 0:03:01.2]} 3... Nf6 {[%clk 0:02:59.6]} 4.
Nc3 {[%clk 0:03:01.8]} 4... e6 {[%clk 0:02:59.4]} 5. Bg5 {[%clk 0:03:01.7]} 5...
Be7 {[%clk 0:02:58.5]} 6. e3 {[%clk 0:03:01.5]} 6... h6 {[%clk 0:02:58.3]} 7.
Bf4 {[%clk 0:03:01.3]} 7... Nbd7 {[%clk 0:02:58]} 8. Qc2 {[%clk 0:03:01.6]} 8...
O-O {[%clk 0:02:58]} 9. Rd1 {[%clk 0:03:01.6]} 9... a6 {[%clk 0:02:50]} 10. a3
{[%clk 0:03:01.6]} 10... Re8 {[%clk 0:02:45.7]} 11. h3 {[%clk 0:03:00.7]} 11...
Bf8 {[%clk 0:02:37.5]} 12. Bd3 {[%clk 0:02:49.1]} 12... dxc4 {[%clk 0:02:35.9]}
13. Bxc4 {[%clk 0:02:50]} 13... b5 {[%clk 0:02:35.8]} 14. Ba2 {[%clk 0:02:50.6]}
14... Bb7 {[%clk 0:02:35.2]} 15. Bb1 {[%clk 0:02:41.8]} 15... Rc8 {[%clk
0:02:29]} 16. b4 {[%clk 0:02:40.8]} 16... a5 {[%clk 0:02:26.2]} 17. O-O {[%clk
0:02:39.9]} 17... axb4 {[%clk 0:02:25.3]} 18. axb4 {[%clk 0:02:40.8]} 18... Bxb4
{[%clk 0:02:25.3]} 19. Ne5 {[%clk 0:02:15]} 19... Bxc3 {[%clk 0:02:00.8]} 20.
Qxc3 {[%clk 0:01:59.7]} 20... Nd5 {[%clk 0:02:00.1]} 21. Qc2 {[%clk 0:01:52.2]}
21... N7f6 {[%clk 0:01:58.7]} 22. Bg3 {[%clk 0:01:28.5]} 22... Qa5 {[%clk
0:01:35]} 23. Bh4 {[%clk 0:00:52.2]} 23... Qc3 {[%clk 0:01:28.9]} 24. Qe2 {[%clk
0:00:45.1]} 24... c5 {[%clk 0:01:20.3]} 25. Rc1 {[%clk 0:00:39.4]} 25... Qa3
{[%clk 0:01:18.5]} 26. Qf3 {[%clk 0:00:30.2]} 26... cxd4 {[%clk 0:01:11.9]} 27.
Rxc8 {[%clk 0:00:29.1]} 27... Bxc8 {[%clk 0:01:09.6]} 28. Bxf6 {[%clk
0:00:15.1]} 28... Nxf6 {[%clk 0:01:08.9]} 29. Qg3 {[%clk 0:00:11.7]} 29... dxe3
{[%clk 0:01:05.7]} 30. fxe3 {[%clk 0:00:11.2]} 30... Qe7 {[%clk 0:00:57.2]} 31.
h4 {[%clk 0:00:08.8]} 31... Bb7 {[%clk 0:00:54.6]} 32. h5 {[%clk 0:00:07.9]}
32... Nxh5 {[%clk 0:00:47]} 33. Qf2 {[%clk 0:00:06.9]} 33... Nf6 {[%clk
0:00:43.3]} 34. Qf4 {[%clk 0:00:06.5]} 34... Ba8 {[%clk 0:00:38.9]} 35. Qh4
{[%clk 0:00:06.4]} 35... Qb7 {[%clk 0:00:38]} 36. e4 {[%clk 0:00:04.9]} 36...
Qa7+ {[%clk 0:00:36]} 37. Kh2 {[%clk 0:00:04.3]} 37... Qe3 {[%clk 0:00:33.1]}
38. Rxf6 {[%clk 0:00:03.5]} 38... gxf6 {[%clk 0:00:33.5]} 39. Qxf6 {[%clk
0:00:03.9]} 39... Rf8 {[%clk 0:00:29.1]} 40. Ng4 {[%clk 0:00:02.5]} 40... Qd2
{[%clk 0:00:19.5]} 41. Nxh6+ {[%clk 0:00:02.8]} 41... Kh7 {[%clk 0:00:19.6]} 42.
e5+ {[%clk 0:00:03.1]} 42... Be4 {[%clk 0:00:17.9]} 43. Bxe4# {[%clk 0:00:02.9]}
1-0

[Event "*** Titled Tuesday Blitz"]
[Site "Chess.com"]
[Date "2021.02.02"]
[Round "2"]
[White "KuzubovYuriy"]
[Black "marcodobrikov"]
[Result "1-0"]
[WhiteElo "2843"]
[BlackElo "2536"]
[TimeControl "180+1"]
[EndTime "10:20:07 PST"]
[Termination "KuzubovYuriy won by resignation"]

1. d4 {[%clk 0:03:00.9]} 1... Nf6 {[%clk 0:02:59.6]} 2. Nf3 {[%clk 0:03:01.1]}
2... g6 {[%clk 0:02:59.4]} 3. Nbd2 {[%clk 0:03:01]} 3... Bg7 {[%clk 0:03:00]} 4.
e4 {[%clk 0:03:00.9]} 4... d6 {[%clk 0:03:00.5]} 5. Bd3 {[%clk 0:03:00.2]} 5...
O-O {[%clk 0:03:00.7]} 6. O-O {[%clk 0:03:00.3]} 6... Nc6 {[%clk 0:03:00.5]} 7.
Re1 {[%clk 0:02:56.4]} 7... e5 {[%clk 0:03:00.5]} 8. dxe5 {[%clk 0:02:56.4]}
8... Nxe5 {[%clk 0:02:58.1]} 9. Nxe5 {[%clk 0:02:56.2]} 9... dxe5 {[%clk
0:02:59]} 10. a4 {[%clk 0:02:55.9]} 10... c6 {[%clk 0:02:58.4]} 11. Nc4 {[%clk
0:02:54.4]} 11... Qc7 {[%clk 0:02:56.9]} 12. Bg5 {[%clk 0:02:44.8]} 12... Be6
{[%clk 0:02:55]} 13. Qc1 {[%clk 0:02:36.3]} 13... Nd7 {[%clk 0:02:40.1]} 14. Be7
{[%clk 0:02:26.8]} 14... Rfe8 {[%clk 0:02:40.5]} 15. Bd6 {[%clk 0:02:26]} 15...
Qd8 {[%clk 0:02:40.8]} 16. Rd1 {[%clk 0:02:20.5]} 16... Qh4 {[%clk 0:02:33]} 17.
Qe3 {[%clk 0:02:07.7]} 17... f5 {[%clk 0:02:19.5]} 18. f3 {[%clk 0:01:55.3]}
18... f4 {[%clk 0:02:18]} 19. Qf2 {[%clk 0:01:52.6]} 19... Qf6 {[%clk 0:02:13]}
20. Na5 {[%clk 0:01:50.9]} 20... Bf7 {[%clk 0:02:00.1]} 21. Nxb7 {[%clk
0:01:46.3]} 21... g5 {[%clk 0:01:39]} 22. Ba3 {[%clk 0:01:44.2]} 22... Rab8
{[%clk 0:01:36.6]} 23. Nd6 {[%clk 0:01:43.3]} 23... Red8 {[%clk 0:01:30]} 24.
Nxf7 {[%clk 0:01:41.3]} 24... Qxf7 {[%clk 0:01:30.9]} 25. b3 {[%clk 0:01:38.5]}
25... Kh8 {[%clk 0:01:22.9]} 26. Bc4 {[%clk 0:01:37.9]} 26... Qg6 {[%clk
0:01:21.1]} 27. Be7 {[%clk 0:01:19.2]} 27... Bf8 {[%clk 0:01:16.5]} 28. Bxf8
{[%clk 0:01:11.8]} 28... Nxf8 {[%clk 0:01:16.1]} 29. Qc5 {[%clk 0:01:11.8]}
29... g4 {[%clk 0:01:09.5]} 30. Qxe5+ {[%clk 0:01:10.1]} 30... Qg7 {[%clk
0:01:09.9]} 31. Qxg7+ {[%clk 0:01:07.8]} 31... Kxg7 {[%clk 0:01:10.8]} 32. fxg4
{[%clk 0:01:07.6]} 32... Kf6 {[%clk 0:01:11.3]} 33. Kf2 {[%clk 0:01:05.4]} 33...
Ng6 {[%clk 0:01:11]} 34. h3 {[%clk 0:01:05.1]} 34... Ne5 {[%clk 0:01:10.9]} 35.
Be2 {[%clk 0:01:03.6]} 35... a5 {[%clk 0:01:09.8]} 36. Rxd8 {[%clk 0:01:03]}
36... Rxd8 {[%clk 0:01:09.4]} 37. Rd1 {[%clk 0:01:03.6]} 37... Rxd1 {[%clk
0:01:09.2]} 38. Bxd1 {[%clk 0:01:03.5]} 38... c5 {[%clk 0:01:09.6]} 39. Be2
{[%clk 0:01:03.1]} 39... Kg5 {[%clk 0:01:09.9]} 40. g3 {[%clk 0:01:00.4]} 40...
fxg3+ {[%clk 0:00:56.5]} 41. Kxg3 {[%clk 0:01:00.2]} 41... Ng6 {[%clk
0:00:57.4]} 42. Bd3 {[%clk 0:00:57.9]} 42... h6 {[%clk 0:00:53]} 43. h4+ {[%clk
0:00:50.2]} 43... Kf6 {[%clk 0:00:53.1]} 44. Ba6 {[%clk 0:00:41.6]} 44... Ke5
{[%clk 0:00:49]} 45. Bc8 {[%clk 0:00:39.9]} 45... Ne7 {[%clk 0:00:47.7]} 46. Bf5
{[%clk 0:00:37.1]} 46... Nc6 {[%clk 0:00:47.9]} 47. c3 {[%clk 0:00:33.9]} 47...
Nd8 {[%clk 0:00:35]} 48. Kf3 {[%clk 0:00:29.2]} 48... Nf7 {[%clk 0:00:33.5]} 49.
Ke3 {[%clk 0:00:27.9]} 49... Nd6 {[%clk 0:00:33.8]} 50. g5 {[%clk 0:00:26.7]}
50... hxg5 {[%clk 0:00:33.1]} 51. hxg5 {[%clk 0:00:26.5]} 51... Nf7 {[%clk
0:00:31]} 52. g6 {[%clk 0:00:26.1]} 52... Nd6 {[%clk 0:00:31.3]} 53. Kd3 {[%clk
0:00:25]} 53... c4+ {[%clk 0:00:28.8]} 54. bxc4 {[%clk 0:00:24.6]} 54... Ne8
{[%clk 0:00:25.6]} 55. c5 {[%clk 0:00:24.2]} 55... Nf6 {[%clk 0:00:25.6]} 56. c6
{[%clk 0:00:23.9]} 56... Ne8 {[%clk 0:00:25.6]} 57. c7 {[%clk 0:00:22.8]} 57...
Nxc7 {[%clk 0:00:25.9]} 58. g7 {[%clk 0:00:22.9]} 1-0

[Event "*** Titled Tuesday Blitz"]
[Site "Chess.com"]
[Date "2021.02.02"]
[Round "2"]
[White "superchess02"]
[Black "Fortitudine"]
[Result "1-0"]
[WhiteElo "2798"]
[BlackElo "2351"]
[TimeControl "180+1"]
[EndTime "10:20:07 PST"]
[Termination "superchess02 won on time"]

1. f4 {[%clk 0:03:00.2]} 1... b6 {[%clk 0:02:49.2]} 2. e4 {[%clk 0:02:59.9]}
2... Bb7 {[%clk 0:02:46.8]} 3. Nc3 {[%clk 0:03:00.4]} 3... e6 {[%clk 0:02:45.8]}
4. Nf3 {[%clk 0:02:59.5]} 4... Nf6 {[%clk 0:02:43]} 5. Bd3 {[%clk 0:02:57.8]}
5... Bc5 {[%clk 0:02:34.3]} 6. Qe2 {[%clk 0:02:53.3]} 6... Nc6 {[%clk
0:02:26.8]} 7. e5 {[%clk 0:02:44.7]} 7... Ng4 {[%clk 0:02:12.9]} 8. Ne4 {[%clk
0:02:44.3]} 8... Nb4 {[%clk 0:01:49.9]} 9. h3 {[%clk 0:02:17.1]} 9... Nh6 {[%clk
0:01:48.2]} 10. g4 {[%clk 0:02:08.5]} 10... d5 {[%clk 0:00:48.6]} 11. Nxc5
{[%clk 0:01:59.5]} 11... bxc5 {[%clk 0:00:49.5]} 12. c3 {[%clk 0:01:53.7]} 12...
Nxd3+ {[%clk 0:00:46.3]} 13. Qxd3 {[%clk 0:01:54.6]} 13... Bc6 {[%clk
0:00:24.1]} 14. Kf2 {[%clk 0:01:52.2]} 14... d4 {[%clk 0:00:22.4]} 15. Rd1
{[%clk 0:01:39]} 15... Qd5 {[%clk 0:00:17.1]} 16. c4 {[%clk 0:01:37]} 16...
Qxf3+ {[%clk 0:00:15.1]} 17. Qxf3 {[%clk 0:01:37.6]} 17... Bxf3 {[%clk 0:00:16]}
18. Kxf3 {[%clk 0:01:38.5]} 18... f6 {[%clk 0:00:16.4]} 19. Re1 {[%clk
0:01:34.8]} 19... Kd7 {[%clk 0:00:14.8]} 20. d3 {[%clk 0:01:29.6]} 20... Nf7
{[%clk 0:00:14.7]} 21. b3 {[%clk 0:01:24.8]} 21... fxe5 {[%clk 0:00:14.9]} 22.
fxe5 {[%clk 0:01:25.7]} 22... Raf8 {[%clk 0:00:15.1]} 23. Kg3 {[%clk 0:01:17.6]}
23... h6 {[%clk 0:00:15]} 24. Ba3 {[%clk 0:01:16.8]} 24... Kc6 {[%clk
0:00:14.4]} 25. h4 {[%clk 0:01:15.4]} 25... Nd8 {[%clk 0:00:10.8]} 26. Rf1
{[%clk 0:01:14.7]} 26... Nf7 {[%clk 0:00:10.1]} 27. Rae1 {[%clk 0:01:13.6]}
27... h5 {[%clk 0:00:09.5]} 28. g5 {[%clk 0:01:11.9]} 28... Rhg8 {[%clk
0:00:09.8]} 29. b4 {[%clk 0:00:53.4]} 29... Nh8 {[%clk 0:00:07.8]} 30. bxc5
{[%clk 0:00:52.1]} 30... Ng6 {[%clk 0:00:07.3]} 31. Bb2 {[%clk 0:00:35]} 31...
Rxf1 {[%clk 0:00:05.6]} 32. Rxf1 {[%clk 0:00:35.9]} 32... Nxe5 {[%clk
0:00:06.2]} 33. Bxd4 {[%clk 0:00:31.9]} 33... Nxd3 {[%clk 0:00:06.4]} 34. Rf7
{[%clk 0:00:31.5]} 34... Nxc5 {[%clk 0:00:06.2]} 35. Bxg7 {[%clk 0:00:30.6]}
35... Rd8 {[%clk 0:00:04.8]} 36. Be5 {[%clk 0:00:29.9]} 36... Rd3+ {[%clk
0:00:05.7]} 37. Kf4 {[%clk 0:00:29.3]} 37... Rh3 {[%clk 0:00:04.8]} 38. g6
{[%clk 0:00:26]} 38... Rxh4+ {[%clk 0:00:04.3]} 39. Kg5 {[%clk 0:00:26.5]} 39...
Rg4+ {[%clk 0:00:04.9]} 40. Kxh5 {[%clk 0:00:26.7]} 40... Rg1 {[%clk 0:00:03.8]}
41. g7 {[%clk 0:00:26.9]} 41... Nd7 {[%clk 0:00:01.4]} 42. Bd4 {[%clk
0:00:24.9]} 42... e5 {[%clk 0:00:01.1]} 43. Bxg1 {[%clk 0:00:24.5]} 1-0

[Event "*** Titled Tuesday Blitz"]
[Site "Chess.com"]
[Date "2021.02.02"]
[Round "2"]
[White "BigAl"]
[Black "Camels1981"]
[Result "1-0"]
[WhiteElo "2476"]
[BlackElo "2274"]
[TimeControl "180+1"]
[EndTime "10:20:07 PST"]
[Termination "BigAl won by resignation"]

1. e4 {[%clk 0:03:00.9]} 1... c5 {[%clk 0:02:58.3]} 2. Nc3 {[%clk 0:02:59.7]}
2... a6 {[%clk 0:02:51.5]} 3. g3 {[%clk 0:02:59.4]} 3... g6 {[%clk 0:02:42.5]}
4. Bg2 {[%clk 0:02:56.7]} 4... Bg7 {[%clk 0:02:42.6]} 5. d3 {[%clk 0:02:55.9]}
5... Nc6 {[%clk 0:02:42.6]} 6. Be3 {[%clk 0:02:55.5]} 6... d6 {[%clk 0:02:41.7]}
7. Qd2 {[%clk 0:02:55.5]} 7... Nf6 {[%clk 0:02:40.1]} 8. h3 {[%clk 0:02:46.4]}
8... O-O {[%clk 0:02:36.8]} 9. Nge2 {[%clk 0:02:45.5]} 9... Rb8 {[%clk 0:02:32]}
10. Bh6 {[%clk 0:02:45.1]} 10... b5 {[%clk 0:02:31.3]} 11. Nd1 {[%clk
0:02:42.4]} 11... b4 {[%clk 0:02:30.1]} 12. O-O {[%clk 0:02:39.6]} 12... a5
{[%clk 0:02:29.6]} 13. Bxg7 {[%clk 0:02:36.3]} 13... Kxg7 {[%clk 0:02:29.1]} 14.
Ne3 {[%clk 0:02:33.4]} 14... Nd4 {[%clk 0:02:28.3]} 15. f4 {[%clk 0:02:28]}
15... Ba6 {[%clk 0:02:27.4]} 16. Kh2 {[%clk 0:02:22.3]} 16... Nd7 {[%clk
0:02:26.8]} 17. Ng1 {[%clk 0:02:10.9]} 17... a4 {[%clk 0:02:24.1]} 18. c3 {[%clk
0:02:07.3]} 18... bxc3 {[%clk 0:02:23.4]} 19. bxc3 {[%clk 0:02:07.3]} 19... Ne6
{[%clk 0:02:02.1]} 20. f5 {[%clk 0:02:04.8]} 20... Nc7 {[%clk 0:02:01.4]} 21.
Ng4 {[%clk 0:02:03]} 21... Ne5 {[%clk 0:01:51.6]} 22. f6+ {[%clk 0:01:55.7]}
22... Kh8 {[%clk 0:01:41.8]} 23. Nxe5 {[%clk 0:01:37.5]} 23... dxe5 {[%clk
0:01:40.6]} 24. fxe7 {[%clk 0:01:37.7]} 24... Qxe7 {[%clk 0:01:40.2]} 25. c4
{[%clk 0:01:35.1]} 25... a3 {[%clk 0:01:29.7]} 26. Qc3 {[%clk 0:01:30.2]} 26...
Rfd8 {[%clk 0:01:23.7]} 27. Qxa3 {[%clk 0:01:25.9]} 27... Rb6 {[%clk 0:01:04]}
28. Rf3 {[%clk 0:01:18.4]} 28... Ne6 {[%clk 0:00:59.1]} 29. Raf1 {[%clk
0:01:17.4]} 29... Ng5 {[%clk 0:00:55.7]} 30. R3f2 {[%clk 0:01:09.8]} 30... f6
{[%clk 0:00:51.1]} 31. h4 {[%clk 0:01:04.9]} 31... Nf7 {[%clk 0:00:51.1]} 32.
Ne2 {[%clk 0:00:53.4]} 32... Bc8 {[%clk 0:00:50.6]} 33. Nc3 {[%clk 0:00:52.7]}
33... Nh6 {[%clk 0:00:50]} 34. Nd5 {[%clk 0:00:43.5]} 34... Ng4+ {[%clk
0:00:49.3]} 35. Kg1 {[%clk 0:00:42.9]} 35... Rxd5 {[%clk 0:00:46.4]} 36. cxd5
{[%clk 0:00:41.5]} 36... Nxf2 {[%clk 0:00:45.3]} 37. Rxf2 {[%clk 0:00:41.9]}
37... Qd6 {[%clk 0:00:30]} 38. Rc2 {[%clk 0:00:34.9]} 38... Rb1+ {[%clk
0:00:29.4]} 39. Kh2 {[%clk 0:00:34.6]} 39... Rb4 {[%clk 0:00:29.2]} 40. Qa5
{[%clk 0:00:28.9]} 40... Ba6 {[%clk 0:00:28.1]} 41. Qxc5 {[%clk 0:00:17.9]}
41... Qxc5 {[%clk 0:00:27.6]} 42. Rxc5 {[%clk 0:00:18.8]} 42... Bxd3 {[%clk
0:00:27.1]} 43. h5 {[%clk 0:00:14.6]} 43... gxh5 {[%clk 0:00:25.6]} 44. Rc7
{[%clk 0:00:14.6]} 44... Rd4 {[%clk 0:00:20.9]} 45. Kh3 {[%clk 0:00:14.2]} 45...
Bxe4 {[%clk 0:00:20.5]} 46. Bxe4 {[%clk 0:00:13.7]} 46... Rxe4 {[%clk
0:00:20.5]} 47. d6 {[%clk 0:00:14.2]} 47... Rd4 {[%clk 0:00:20.4]} 48. d7 {[%clk
0:00:14.7]} 48... Kg8 {[%clk 0:00:20.5]} 49. Rc8+ {[%clk 0:00:14.6]} 1-0

[Event "*** Titled Tuesday Blitz"]
[Site "Chess.com"]
[Date "2021.02.02"]
[Round "2"]
[White "cassoulet"]
[Black "Pintacara"]
[Result "1-0"]
[WhiteElo "2760"]
[BlackElo "2503"]
[TimeControl "180+1"]
[EndTime "10:20:14 PST"]
[Termination "cassoulet won on time"]

1. e4 {[%clk 0:03:00.9]} 1... c5 {[%clk 0:02:56.1]} 2. Nf3 {[%clk 0:03:00.7]}
2... e6 {[%clk 0:02:56.4]} 3. d4 {[%clk 0:03:00.4]} 3... cxd4 {[%clk 0:02:57.3]}
4. Nxd4 {[%clk 0:03:00.2]} 4... a6 {[%clk 0:02:57.4]} 5. Nc3 {[%clk 0:03:00.8]}
5... Qc7 {[%clk 0:02:57.8]} 6. Bd3 {[%clk 0:03:01.2]} 6... Nf6 {[%clk
0:02:57.8]} 7. O-O {[%clk 0:03:00.9]} 7... d6 {[%clk 0:02:58]} 8. Be3 {[%clk
0:03:01.1]} 8... Nbd7 {[%clk 0:02:58.3]} 9. f4 {[%clk 0:03:00.4]} 9... h5 {[%clk
0:02:56.9]} 10. h3 {[%clk 0:02:59.6]} 10... b5 {[%clk 0:02:56.4]} 11. Qf3 {[%clk
0:02:59.7]} 11... Bb7 {[%clk 0:02:56.3]} 12. a3 {[%clk 0:03:00.1]} 12... h4
{[%clk 0:02:54.8]} 13. Rae1 {[%clk 0:02:59.7]} 13... Be7 {[%clk 0:02:53.6]} 14.
Qf2 {[%clk 0:02:55.7]} 14... Nh5 {[%clk 0:02:43.5]} 15. Nce2 {[%clk 0:02:37.6]}
15... Rc8 {[%clk 0:02:40.2]} 16. Nf3 {[%clk 0:02:21.9]} 16... Nc5 {[%clk
0:02:38.1]} 17. e5 {[%clk 0:02:03.3]} 17... Bxf3 {[%clk 0:02:21.8]} 18. Qxf3
{[%clk 0:02:02.7]} 18... Nxd3 {[%clk 0:02:15.6]} 19. cxd3 {[%clk 0:02:03.6]}
19... g6 {[%clk 0:02:08.8]} 20. Rc1 {[%clk 0:02:02]} 20... Qd7 {[%clk
0:02:00.1]} 21. Rxc8+ {[%clk 0:02:00.9]} 21... Qxc8 {[%clk 0:02:01]} 22. Rc1
{[%clk 0:01:58.5]} 22... Qd7 {[%clk 0:01:46.3]} 23. Qa8+ {[%clk 0:01:57.2]}
23... Bd8 {[%clk 0:01:46.4]} 24. exd6 {[%clk 0:01:42.7]} 24... Qxd6 {[%clk
0:01:26.2]} 25. Qc6+ {[%clk 0:01:41.5]} 25... Qxc6 {[%clk 0:01:26]} 26. Rxc6
{[%clk 0:01:42.4]} 26... O-O {[%clk 0:01:16.2]} 27. Rxa6 {[%clk 0:01:42.2]}
27... Bf6 {[%clk 0:01:16.7]} 28. b4 {[%clk 0:01:38.5]} 28... Rc8 {[%clk
0:01:16.9]} 29. Bc5 {[%clk 0:01:36.9]} 29... Rd8 {[%clk 0:01:13]} 30. d4 {[%clk
0:01:36.2]} 30... Ng3 {[%clk 0:01:07.9]} 31. Kf2 {[%clk 0:01:25.4]} 31... Nxe2
{[%clk 0:01:05.3]} 32. Kxe2 {[%clk 0:01:26.3]} 32... Bxd4 {[%clk 0:01:05.4]} 33.
Be7 {[%clk 0:01:20.2]} 33... Rd5 {[%clk 0:01:01.2]} 34. Bxh4 {[%clk 0:01:19.6]}
34... Bc3 {[%clk 0:00:57.4]} 35. Bf2 {[%clk 0:01:15.4]} 35... Rd2+ {[%clk
0:00:51.5]} 36. Kf3 {[%clk 0:01:15.2]} 36... Ra2 {[%clk 0:00:49.5]} 37. Ra5
{[%clk 0:01:10.2]} 37... Kg7 {[%clk 0:00:43.2]} 38. Bc5 {[%clk 0:01:04.9]} 38...
f5 {[%clk 0:00:19.4]} 39. g4 {[%clk 0:00:55.8]} 39... Kf7 {[%clk 0:00:12.5]} 40.
Ra7+ {[%clk 0:00:48.4]} 40... Kg8 {[%clk 0:00:10.2]} 41. Kg3 {[%clk 0:00:40.5]}
41... Bb2 {[%clk 0:00:09]} 42. Kf3 {[%clk 0:00:25.9]} 42... Rxa3+ {[%clk
0:00:07.6]} 43. Rxa3 {[%clk 0:00:25.4]} 43... Bxa3 {[%clk 0:00:08.5]} 44. Ke3
{[%clk 0:00:25.3]} 44... Bb2 {[%clk 0:00:08.5]} 45. Bd4 {[%clk 0:00:24.9]} 45...
Bc1+ {[%clk 0:00:06.3]} 46. Kf3 {[%clk 0:00:25]} 46... Ba3 {[%clk 0:00:06.5]}
47. Bc3 {[%clk 0:00:25]} 47... Bc1 {[%clk 0:00:05.1]} 48. Be5 {[%clk 0:00:22]}
48... Kf7 {[%clk 0:00:05]} 49. Ke2 {[%clk 0:00:21.9]} 49... Ba3 {[%clk
0:00:03.5]} 50. Bd6 {[%clk 0:00:22.2]} 1-0

[Event "*** Titled Tuesday Blitz"]
[Site "Chess.com"]
[Date "2021.02.02"]
[Round "2"]
[White "anasta10"]
[Black "pheonixking2000"]
[Result "0-1"]
[WhiteElo "2490"]
[BlackElo "2717"]
[TimeControl "180+1"]
[EndTime "10:20:14 PST"]
[Termination "pheonixking2000 won by resignation"]

1. d4 {[%clk 0:03:00.6]} 1... Nf6 {[%clk 0:02:59.9]} 2. c4 {[%clk 0:03:00]} 2...
b6 {[%clk 0:03:00]} 3. Nc3 {[%clk 0:02:59.5]} 3... Bb7 {[%clk 0:03:00.6]} 4. Nf3
{[%clk 0:02:59.6]} 4... e6 {[%clk 0:03:01.1]} 5. g3 {[%clk 0:02:59.2]} 5... d5
{[%clk 0:03:01.7]} 6. Bg2 {[%clk 0:02:59.6]} 6... dxc4 {[%clk 0:03:01.6]} 7. O-O
{[%clk 0:02:59.7]} 7... Nbd7 {[%clk 0:03:01.9]} 8. Qa4 {[%clk 0:02:58.2]} 8...
a6 {[%clk 0:03:02.2]} 9. Qxc4 {[%clk 0:02:58.3]} 9... b5 {[%clk 0:03:02.8]} 10.
Qd3 {[%clk 0:02:55.1]} 10... c5 {[%clk 0:03:03.2]} 11. dxc5 {[%clk 0:02:52.4]}
11... Bxc5 {[%clk 0:03:04.1]} 12. Rd1 {[%clk 0:02:51.6]} 12... Qb6 {[%clk
0:03:03.3]} 13. e3 {[%clk 0:02:47.2]} 13... O-O {[%clk 0:03:03.3]} 14. a3 {[%clk
0:02:44.6]} 14... Rfd8 {[%clk 0:03:00.8]} 15. b4 {[%clk 0:02:31.8]} 15... Be7
{[%clk 0:02:39.9]} 16. Qe2 {[%clk 0:02:27.6]} 16... Rac8 {[%clk 0:02:17.6]} 17.
Bb2 {[%clk 0:02:25.8]} 17... Qa7 {[%clk 0:02:05.1]} 18. Rac1 {[%clk 0:02:20.2]}
18... Qa8 {[%clk 0:02:04]} 19. h3 {[%clk 0:02:10.4]} 19... Nb6 {[%clk
0:02:01.9]} 20. Rxd8+ {[%clk 0:02:04]} 20... Rxd8 {[%clk 0:02:01.5]} 21. Rd1
{[%clk 0:02:04]} 21... Rc8 {[%clk 0:02:00.2]} 22. Ba1 {[%clk 0:01:50.8]} 22...
Nc4 {[%clk 0:01:57.6]} 23. a4 {[%clk 0:01:50.6]} 23... Bc6 {[%clk 0:01:54.9]}
24. axb5 {[%clk 0:01:36.2]} 24... axb5 {[%clk 0:01:55.8]} 25. Nh4 {[%clk
0:01:33.8]} 25... h6 {[%clk 0:01:12.3]} 26. Nxb5 {[%clk 0:01:10.4]} 26... Nd5
{[%clk 0:00:57.3]} 27. Nd4 {[%clk 0:01:04.7]} 27... Bb7 {[%clk 0:00:48.5]} 28.
Qg4 {[%clk 0:00:46.3]} 28... Ndxe3 {[%clk 0:00:43.1]} 29. fxe3 {[%clk
0:00:36.5]} 29... Nxe3 {[%clk 0:00:44]} 30. Qe2 {[%clk 0:00:19.3]} 30... Nxd1
{[%clk 0:00:41]} 31. Qxd1 {[%clk 0:00:19]} 31... Bxh4 {[%clk 0:00:41]} 32. Bxb7
{[%clk 0:00:16.1]} 32... Qxb7 {[%clk 0:00:37.6]} 33. gxh4 {[%clk 0:00:17]} 33...
Qxb4 {[%clk 0:00:37.2]} 34. Ne2 {[%clk 0:00:15.3]} 34... Qxh4 {[%clk 0:00:34.3]}
35. Bd4 {[%clk 0:00:11.8]} 35... Qxh3 {[%clk 0:00:32.2]} 36. Qa1 {[%clk
0:00:10.8]} 36... Qg4+ {[%clk 0:00:29.9]} 37. Kf2 {[%clk 0:00:10.3]} 37... Rc2
{[%clk 0:00:30.3]} 38. Qd1 {[%clk 0:00:06.9]} 38... Rxe2+ {[%clk 0:00:30.2]} 39.
Qxe2 {[%clk 0:00:07.1]} 39... Qxd4+ {[%clk 0:00:30.3]} 40. Kg2 {[%clk 0:00:08]}
40... Qf6 {[%clk 0:00:29]} 41. Qa6 {[%clk 0:00:07.2]} 41... g6 {[%clk
0:00:27.7]} 42. Qc8+ {[%clk 0:00:07.5]} 42... Kg7 {[%clk 0:00:28.2]} 43. Kg3
{[%clk 0:00:07.6]} 43... h5 {[%clk 0:00:28]} 44. Kh3 {[%clk 0:00:07.7]} 44...
Qf5+ {[%clk 0:00:28.1]} 45. Kh2 {[%clk 0:00:08.6]} 45... Qe5+ {[%clk 0:00:27.3]}
46. Kh3 {[%clk 0:00:08.4]} 46... g5 {[%clk 0:00:27.9]} 47. Kg2 {[%clk
0:00:06.7]} 47... h4 {[%clk 0:00:28]} 48. Qc4 {[%clk 0:00:06.7]} 48... Qd5+
{[%clk 0:00:26]} 0-1